{"text_format":"1","workbook":"xlsx","n_sheets":4,"sheets":["1","2","Sheet3","Sheet4"],"not_rendered":{"charts":0,"images":0,"macros":1,"external_links":0,"defined_names":0,"comments":0,"pivot_tables":0},"unopened":[],"bounds":{"document_bytes":16777216,"sheet_cells":100000,"rows_first":2000,"rows_last":500,"rows_between":2000,"halvings":0,"cell_chars":16384,"cell_head_chars":4096},"cells_cut":0,"cells_raw":0,"read":"whole","date_system":"1900"}

{"sheet":"1","index":0,"n_rows":107,"n_cols":18,"rows_kept":107,"cut":false,"hidden":false,"merged":[]}
[null,{"$f":"INT(SUM(B4:B43)/104*100)","v":0},"←全部入力したら、「確定」ボタンを押してください。"]
[null,null,null,{"$f":"\"指数＝\"&B1","v":"指数＝0"}]
["当てはまらない＝1\nやや当てはまる＝2\n当てはまる＝3\nを入力してください。\n           ↓",null,"番号","質問"]
[null,{"$f":"IF(A4=1,0,IF(A4=2,1,IF(A4=3,2,\"a\")))","v":"a"},"Q1","教室にゴミが落ちていることが多い。",null,null,null,null,null,"\";",{"$f":"C4&D4&J4","v":"Q1教室にゴミが落ちていることが多い。\";"},"ko[1]=",1,";",{"$f":"L4&M4&N4","v":"ko[1]=1;"},"qu[1]=\""," No.1\";",{"$f":"P4&Q4","v":"qu[1]=\" No.1\";"}]
[null,{"$f":"IF(A5=1,0,IF(A5=2,1,IF(A5=3,2,\"a\")))","v":"a"},"Q2","休み時間や教室移動で子供たちがいなくなった後の教室で、椅子が出ていたり、机の上が散らかっていたりする。",null,null,null,null,null,"\";","Q2休み時間や教室移動で子供たちがいなくなった後の教室で、椅子が出ていたり、机の上が散らかっていたりする。\";","ko[2]=",1,";",{"$f":"L5&M5&N5","v":"ko[2]=1;"},"qu[2]=\""," No.2\";",{"$f":"P5&Q5","v":"qu[2]=\" No.2\";"}]
[null,"a","Q3","落書きが目立つ。",null,null,null,null,null,"\";","Q3落書きが目立つ。\";","ko[3]=",1,";","ko[3]=1;","qu[3]=\""," No.3\";","qu[3]=\" No.3\";"]
[null,{"$f":"IF(A7=1,0,IF(A7=2,2,IF(A7=3,4,\"a\")))","v":"a"},"Q4","落書きに友達の悪口やいじめ的な要素、教師や学級運営への悪口・批判が加わる。",null,null,null,null,null,"\";","Q4落書きに友達の悪口やいじめ的な要素、教師や学級運営への悪口・批判が加わる。\";","ko[4]=",3,";","ko[4]=3;","qu[4]=\""," No.4\";","qu[4]=\" No.4\";"]
[null,{"$f":"IF(A8=1,0,IF(A8=2,1.5,IF(A8=3,3,\"a\")))","v":"a"},"Q5","教室や学校の備品、子供の持ち物など、物が隠される。",null,null,null,null,null,"\";","Q5教室や学校の備品、子供の持ち物など、物が隠される。\";","ko[5]=",2,";","ko[5]=2;","qu[5]=\""," No.5\";","qu[5]=\" No.5\";"]
[null,"a","Q6","物が壊される。",null,null,null,null,null,"\";","Q6物が壊される。\";","ko[6]=",2,";","ko[6]=2;","qu[6]=\""," No.6\";","qu[6]=\" No.6\";"]
[null,"a","Q7","授業が始まるまでの時間が長い。",null,null,null,null,null,"\";","Q7授業が始まるまでの時間が長い。\";","ko[7]=",1,";","ko[7]=1;","qu[7]=\""," No.7\";","qu[7]=\" No.7\";"]
[null,"a","Q8","指示が通りにくい。",null,null,null,null,null,"\";","Q8指示が通りにくい。\";","ko[8]=",1,";","ko[8]=1;","qu[8]=\""," No.8\";","qu[8]=\" No.8\";"]
[null,{"$f":"IF(A12=1,0,IF(A12=2,1.5,IF(A12=3,3,\"a\")))","v":"a"},"Q9","指示に対してわざと反応を遅らせている素振りが見られる。（消極的指導不服従）",null,null,null,null,null,"\";","Q9指示に対してわざと反応を遅らせている素振りが見られる。（消極的指導不服従）\";","ko[9]=",2,";","ko[9]=2;","qu[9]=\""," No.9\";","qu[9]=\" No.9\";"]
[null,{"$f":"IF(A13=1,0,IF(A13=2,2,IF(A13=3,4,\"a\")))","v":"a"},"Q10","指示に対して「うっとうしい」「だるい」という態度を露骨に表す。（消極的指導不服従）",null,null,null,null,null,"\";","Q10指示に対して「うっとうしい」「だるい」という態度を露骨に表す。（消極的指導不服従）\";","ko[10]=",3,";","ko[10]=3;","qu[10]=\""," No.10\";","qu[10]=\" No.10\";"]
[null,{"$f":"IF(A14=1,0,IF(A14=2,2,IF(A14=3,4,\"a\")))","v":"a"},"Q11","普通に注意しても、怒鳴っても効き目がない。（積極的指導不服従）",null,null,null,null,null,"\";","Q11普通に注意しても、怒鳴っても効き目がない。（積極的指導不服従）\";","ko[11]=",3,";","ko[11]=3;","qu[11]=\""," No.11\";","qu[11]=\" No.11\";"]
[null,{"$f":"IF(A15=1,0,IF(A15=2,2,IF(A15=3,4,\"a\")))","v":"a"},"Q12","指示を出したり、叱ったりしても、聞き流される。（積極的指導不服従）",null,null,null,null,null,"\";","Q12指示を出したり、叱ったりしても、聞き流される。（積極的指導不服従）\";","ko[12]=",3,";","ko[12]=3;","qu[12]=\""," No.12\";","qu[12]=\" No.12\";"]
[null,{"$f":"IF(A16=1,0,IF(A16=2,1.5,IF(A16=3,3,\"a\")))","v":"a"},"Q13","叱っているときにニヤけている。（消極的指導不服従）",null,null,null,null,null,"\";","Q13叱っているときにニヤけている。（消極的指導不服従）\";","ko[13]=",2,";","ko[13]=2;","qu[13]=\""," No.13\";","qu[13]=\" No.13\";"]
[null,{"$f":"IF(A17=1,0,IF(A17=2,2,IF(A17=3,4,\"a\")))","v":"a"},"Q14","叱っている時やわるさをするときに、子供同士でアイコンタクトをとっている。",null,null,null,null,null,"\";","Q14叱っている時やわるさをするときに、子供同士でアイコンタクトをとっている。\";","ko[14]=",3,";","ko[14]=3;","qu[14]=\""," No.14\";","qu[14]=\" No.14\";"]
[null,"a","Q15","テストなどのプリントを返す時にむしり取るようにして受け取る。",null,null,null,null,null,"\";","Q15テストなどのプリントを返す時にむしり取るようにして受け取る。\";","ko[15]=",1,";","ko[15]=1;","qu[15]=\""," No.15\";","qu[15]=\" No.15\";"]
[null,{"$f":"IF(A19=1,0,IF(A19=2,1.5,IF(A19=3,3,\"a\")))","v":"a"},"Q16","授業中に私語が多く、静かになっている時間が長続きしない。",null,null,null,null,null,"\";","Q16授業中に私語が多く、静かになっている時間が長続きしない。\";","ko[16]=",2,";","ko[16]=2;","qu[16]=\""," No.16\";","qu[16]=\" No.16\";"]
[null,"a","Q17","奇声を発している子供が複数人いる。",null,null,null,null,null,"\";","Q17奇声を発している子供が複数人いる。\";","ko[17]=",2,";","ko[17]=2;","qu[17]=\""," No.17\";","qu[17]=\" No.17\";"]
[null,"a","Q18","授業中にだれも発言しなくなる。発言を嫌がる子供が多い。",null,null,null,null,null,"\";","Q18授業中にだれも発言しなくなる。発言を嫌がる子供が多い。\";","ko[18]=",1,";","ko[18]=1;","qu[18]=\""," No.18\";","qu[18]=\" No.18\";"]
[null,"a","Q19","授業中にトイレに行く子供がやけに多い。",null,null,null,null,null,"\";","Q19授業中にトイレに行く子供がやけに多い。\";","ko[19]=",1,";","ko[19]=1;","qu[19]=\""," No.19\";","qu[19]=\" No.19\";"]
[null,"a","Q20","授業中に保健室に行く子供がやけに多い。",null,null,null,null,null,"\";","Q20授業中に保健室に行く子供がやけに多い。\";","ko[20]=",1,";","ko[20]=1;","qu[20]=\""," No.20\";","qu[20]=\" No.20\";"]
[null,{"$f":"IF(A24=1,0,IF(A24=2,1.5,IF(A24=3,3,\"a\")))","v":"a"},"Q21","授業中に寝ている子供、姿勢が悪い子供、体が前を向いていない子供がいる。",null,null,null,null,null,"\";","Q21授業中に寝ている子供、姿勢が悪い子供、体が前を向いていない子供がいる。\";","ko[21]=",2,";","ko[21]=2;","qu[21]=\""," No.21\";","qu[21]=\" No.21\";"]
[null,"a","Q22","ノートやプリントに書く字が乱れている子供が多い。",null,null,null,null,null,"\";","Q22ノートやプリントに書く字が乱れている子供が多い。\";","ko[22]=",1,";","ko[22]=1;","qu[22]=\""," No.22\";","qu[22]=\" No.22\";"]
[null,"a","Q23","プリントが床に落ちていることが多い。",null,null,null,null,null,"\";","Q23プリントが床に落ちていることが多い。\";","ko[23]=",1,";","ko[23]=1;","qu[23]=\""," No.23\";","qu[23]=\" No.23\";"]
[null,"a","Q24","子供が黒板にした落書きが、授業が始まっても消されていない。",null,null,null,null,null,"\";","Q24子供が黒板にした落書きが、授業が始まっても消されていない。\";","ko[24]=",1,";","ko[24]=1;","qu[24]=\""," No.24\";","qu[24]=\" No.24\";"]
[null,"a","Q25","忘れ物がクラスの3割を超えることが多い。",null,null,null,null,null,"\";","Q25忘れ物がクラスの3割を超えることが多い。\";","ko[25]=",1,";","ko[25]=1;","qu[25]=\""," No.25\";","qu[25]=\" No.25\";"]
[null,"a","Q26","傘や文房具など、個人の持ち物が教室のあちらこちらから出てくる。",null,null,null,null,null,"\";","Q26傘や文房具など、個人の持ち物が教室のあちらこちらから出てくる。\";","ko[26]=",1,";","ko[26]=1;","qu[26]=\""," No.26\";","qu[26]=\" No.26\";"]
[null,"a","Q27","掃除の後、あまりきれいになっていない。（ごみが捨てられていない等）",null,null,null,null,null,"\";","Q27掃除の後、あまりきれいになっていない。（ごみが捨てられていない等）\";","ko[27]=",1,";","ko[27]=1;","qu[27]=\""," No.27\";","qu[27]=\" No.27\";"]
[null,{"$f":"IF(A31=1,0,IF(A31=2,1.5,IF(A31=3,3,\"a\")))","v":"a"},"Q28","仕事やリーダー役を押し付けあう。",null,null,null,null,null,"\";","Q28仕事やリーダー役を押し付けあう。\";","ko[28]=",2,";","ko[28]=2;","qu[28]=\""," No.28\";","qu[28]=\" No.28\";"]
[null,"a","Q29","教室で物を投げる。",null,null,null,null,null,"\";","Q29教室で物を投げる。\";","ko[29]=",1,";","ko[29]=1;","qu[29]=\""," No.29\";","qu[29]=\" No.29\";"]
[null,"a","Q30","グループを作り、グループ以外の友達との交流をしようとしない。",null,null,null,null,null,"\";","Q30グループを作り、グループ以外の友達との交流をしようとしない。\";","ko[30]=",1,";","ko[30]=1;","qu[30]=\""," No.30\";","qu[30]=\" No.30\";"]
[null,{"$f":"IF(A34=1,0,IF(A34=2,1.5,IF(A34=3,3,\"a\")))","v":"a"},"Q31","間違えた発言をした子供をクスクス笑う。または、馬鹿にする。",null,null,null,null,null,"\";","Q31間違えた発言をした子供をクスクス笑う。または、馬鹿にする。\";","ko[31]=",2,";","ko[31]=2;","qu[31]=\""," No.31\";","qu[31]=\" No.31\";"]
[null,"a","Q32","正論が通らず、人に注意をする子供が少なくなる。",null,null,null,null,null,"\";","Q32正論が通らず、人に注意をする子供が少なくなる。\";","ko[32]=",2,";","ko[32]=2;","qu[32]=\""," No.32\";","qu[32]=\" No.32\";"]
[null,"a","Q33","強い者になびき、弱いものに冷たくなって、子供の人間関係の基本が弱肉強食になっている。",null,null,null,null,null,"\";","Q33強い者になびき、弱いものに冷たくなって、子供の人間関係の基本が弱肉強食になっている。\";","ko[33]=",1,";","ko[33]=1;","qu[33]=\""," No.33\";","qu[33]=\" No.33\";"]
[null,"a","Q34","机を離すなど、露骨に人を嫌う。",null,null,null,null,null,"\";","Q34机を離すなど、露骨に人を嫌う。\";","ko[34]=",1,";","ko[34]=1;","qu[34]=\""," No.34\";","qu[34]=\" No.34\";"]
[null,{"$f":"IF(A38=1,0,IF(A38=2,1.5,IF(A38=3,3,\"a\")))","v":"a"},"Q35","言動が粗暴で、「きしょい」「きもい」「むかつく」「殺す」「死ね」等の言葉を発する子供が多い。",null,null,null,null,null,"\";","Q35言動が粗暴で、「きしょい」「きもい」「むかつく」「殺す」「死ね」等の言葉を発する子供が多い。\";","ko[35]=",2,";","ko[35]=2;","qu[35]=\""," No.35\";","qu[35]=\" No.35\";"]
[null,"a","Q36","キレやすい子供が多く、喧嘩が頻発する。止める者もいない。",null,null,null,null,null,"\";","Q36キレやすい子供が多く、喧嘩が頻発する。止める者もいない。\";","ko[36]=",2,";","ko[36]=2;","qu[36]=\""," No.36\";","qu[36]=\" No.36\";"]
[null,"a","Q37","学級で行事をやろうと言ったときに「やりたくない」という声が上がる。",null,null,null,null,null,"\";","Q37学級で行事をやろうと言ったときに「やりたくない」という声が上がる。\";","ko[37]=",2,";","ko[37]=2;","qu[37]=\""," No.37\";","qu[37]=\" No.37\";"]
[null,"a","Q38","けがが多い。",null,null,null,null,null,"\";","Q38けがが多い。\";","ko[38]=",1,";","ko[38]=1;","qu[38]=\""," No.38\";","qu[38]=\" No.38\";"]
[null,"a","Q39","教師がお願いごとをしたら、億劫がる子供が多い。",null,null,null,null,null,"\";","Q39教師がお願いごとをしたら、億劫がる子供が多い。\";","ko[39]=",1,";","ko[39]=1;","qu[39]=\""," No.39\";","qu[39]=\" No.39\";"]
[null,{"$f":"IF(A43=1,0,IF(A43=2,1.5,IF(A43=3,3,\"a\")))","v":"a"},"Q40","前年度以前に習得すべき漢字や計算の力が身についていない（正答率60％以下が目安）子供がクラスの3分の１以上いる。",null,null,null,null,null,"\";","Q40前年度以前に習得すべき漢字や計算の力が身についていない（正答率60％以下が目安）子供がクラスの3分の１以上いる。\";","ko[40]=",2,";","ko[40]=2;","qu[40]=\""," No.40\";","qu[40]=\" No.40\";"]
[]
[]
[]
[]
[]
[]
[null,null,null,"何か間違いがあります。3以上の数字を入れていませんか？\n「もう一度やる」ボタンをクリックしてください。"]
["指数50～100は、\n\n危険な状態","超危険",null,"かなり苦しい状況になってきていると思います。何かをきっかけに、一気にコントロールが効かなくなる状況に陥る可能性もあります。現担任と児童の関係の中でなんとかつじつまが合っていても、来年度になって担任が交代すると問題が噴出するケースもあります。 \n早く管理職や周りの教員に相談し、改善を図る必要があるでしょう。 \n4月当初にこの状態であれば前年度に問題があったのでしょう。チェックした項目のような問題を抱えている場合は、丁寧に一つ一つを改善し、改善できたことについては「変わってきたね、よくなってきたね」と褒めてあげると、子供たちが前向きになれる状況が生まれるかもしれません。 \n学年の後半～終盤でこの状態がじわじわと発生してきた場合は、どこかの時点でクラス全体で話し合う場を持つ必要があると思います。\n"]
["指数20～49は、\n\nやや危険な状態","危険",null,"ちらほらとほころびは見えていると思います。どこかで学級経営の見直しを図る機会をもつ必要があると思います。冷静さを失わず、じっくりと腰を据えて、日々の学級経営・授業の充実を図りましょう。 \n「当てはまる」「やや当てはまる」となる項目で、１人か２人の気になる子供が浮かんだ方もおられるかもしれません。もし頭に浮かんだ子供がいるならば、その子供への関わり方を考え直す機会は必要かもしれません。教師側が甘くなっている場合もあれば、逆に過敏になったり過剰な対応をしていたりする場合もあると思います。頭に浮かぶ子供たちとの上手に距離をとって、その子供たちのマイナス面の影響が学級全体に広がらないようにする必要はあるでしょう。 赤字（超危険信号）や青字（危険信号）に「当てはまる」「やや当てはまる」がある場合は、今後、改善が必要です。\n"]
["指数0～19は、\n\n健全な状態","安心",null,"それほど心配はないのではないかと思います。できれば、このチェックで「指数＝0」を目指し、ほとんど「当てはまる」や「やや当てはまる」を選ぶ必要がない状況を作り出すためにどんな学級経営や授業運営をしてゆくべきなのか、じっくりと取り組んでいきましょう。\nもしかすると、現在の状況を作り出すために教員側や学校側がかなり無理をしている場合があるかもしれません。厳しすぎる規則や強制的な指示によって学級運営を維持している場合は、子供側にストレスを生み出し、どこかに歪が現れてくることもあるかもしれません。気をつけましょう。\nまた、赤字（超危険信号）や青字（危険信号）に「当てはまる」「やや当てはまる」がある場合は、今後、改善が必要です。"]
[]
[]
[]
[]
[]
[]
[]
[]
[]
[]
[]
[]
[]
[]
[]
[]
[]
[]
[]
[]
[]
[]
[]
[]
[]
[]
[]
[]
[]
[]
[]
[]
[]
[]
[]
[]
[]
[]
[]
[]
[]
[]
[]
[]
[]
[]
[]
[]
[null,null,null,"以下のリンクをクリックして、是非ご参照ください。"]
[null,null,null,"★学級崩壊チェック項目とその対処1"]
[null,null,null,"★学級崩壊チェック項目とその対処2"]
[null,null,null,"★学級崩壊にどう対処するか"]
[null,null,null,"★「学級崩壊」って何？"]
[null,null,null,"★学級崩壊チェック"]

{"sheet":"2","index":1,"n_rows":0,"n_cols":0,"rows_kept":0,"cut":false,"hidden":false,"merged":[]}

{"sheet":"Sheet3","index":2,"n_rows":0,"n_cols":0,"rows_kept":0,"cut":false,"hidden":false,"merged":[]}

{"sheet":"Sheet4","index":3,"n_rows":0,"n_cols":0,"rows_kept":0,"cut":false,"hidden":false,"merged":[]}